fUST/lending_fUST_20250407
["ID","MTS","AMOUNT","RATE_DAILY","PERIOD"]
[357331657,1744007483622,-500.0,0.00040821,7]
[357331659,1744007483632,-522.77,0.00040821,7]
[357331661,1744007483641,-500.0,0.00040821,7]
[357331663,1744007483651,-571.83,0.00040821,7]
[357331665,1744007483660,-551.20530896,0.00040821,7]
[357331667,1744007483672,-523.84,0.00040821,7]
[357331669,1744007483687,-500.0,0.00040821,7]
[357331671,1744007483706,-500.0,0.00040821,7]
[357331672,1744007483717,-500.0,0.00040821,7]
[357331674,1744007483728,-500.0,0.00040821,7]
[357331676,1744007483738,-833.69,0.00040821,7]
[357331678,1744007483748,-500.0,0.00040821,7]
[357331680,1744007483763,-2025.36,0.00040821,7]
[357331682,1744007483773,-500.0,0.00040821,7]
[357331684,1744007483785,-500.0,0.00040821,7]
[357331686,1744007483795,-1592.74,0.00040821,7]
[357331688,1744007483807,-603.67,0.00040821,7]
[357331690,1744007483816,-500.0,0.00040821,7]
[357331692,1744007483826,-2054.09,0.00040821,7]
[357331694,1744007483842,-500.0,0.00040821,7]
[357331696,1744007483852,-500.0,0.00040821,7]
[357331711,1744007483984,-4027.87,0.00040821,7]
[357331713,1744007483995,-1703.64,0.00040821,7]
[357331715,1744007484004,-1206.14,0.00040821,7]
[357331717,1744007484014,-2750.5,0.00040821,7]
[357331719,1744007484023,-5383.4,0.00040821,7]
[357331721,1744007484033,-518.76484272,0.00040821,7]
[357331723,1744007484045,-1044.92,0.00040821,7]
[357331725,1744007484055,-752.29,0.00040821,7]
[357331727,1744007484064,-5668.81,0.00040821,7]
[357331729,1744007484074,-556.96,0.00040821,7]
[357331731,1744007484083,-16324.2,0.00040821,7]
[357331732,1744007484093,-9467.87,0.00040821,7]
[357331734,1744007484103,-500.0,0.00040821,7]
[357331736,1744007484112,-704.24,0.00040821,7]
[357331738,1744007484122,-2032.66,0.00040821,7]
[357331741,1744007484132,-7826.43,0.00040821,7]
[357331743,1744007484142,-627.1,0.00040821,7]
[357331744,1744007484151,-1951.0,0.00040821,7]
[357331746,1744007484161,-1564.82,0.00040821,7]
[357331748,1744007484170,-720.69,0.00040821,7]
[357331750,1744007484180,-603.99,0.00040821,7]
[357331752,1744007484190,-500.0,0.00040821,7]
[357331754,1744007484199,-1960.56,0.00040821,7]
[357331756,1744007484208,-1748.88,0.00040821,7]
[357331758,1744007484217,-500.0,0.00040821,7]
[357331760,1744007484227,-2029.77,0.00040821,7]
[357331762,1744007484236,-500.0,0.00040821,7]
[357331764,1744007484246,-1368.39,0.00040821,2]
[357331766,1744007484256,-588.58,0.00040821,7]
[357331768,1744007484265,-601.11,0.00040821,7]
[357331770,1744007484275,-500.0,0.00040821,7]
[357331772,1744007484287,-500.0,0.00040821,7]
[357331774,1744007484297,-1802.77,0.00040821,7]
[357331776,1744007484306,-638.37,0.00040821,7]
[357331778,1744007484316,-3642.09,0.00040821,7]
[357331780,1744007484325,-1347.37,0.00040821,7]
[357331782,1744007484335,-1391.95,0.00040821,7]
[357331784,1744007484346,-500.0,0.00040821,7]
[357331786,1744007484355,-2126.62,0.00040821,7]
[357331788,1744007484366,-796.84,0.00040821,7]
[357331790,1744007484376,-617.31,0.00040821,7]
[357331792,1744007484386,-5186.58,0.00040821,7]
[357331794,1744007484396,-1111.1,0.00040821,7]
[357331796,1744007484406,-1058.19,0.00040821,7]
[357331798,1744007484415,-7684.6,0.00040821,7]
[357331800,1744007484424,-781.69,0.00040821,7]
[357331802,1744007484434,-503.58,0.00040821,7]
[357331804,1744007484444,-500.0,0.00040821,7]
[357331806,1744007484453,-526.85,0.00040821,7]
[357331808,1744007484463,-500.0,0.00040821,7]
[357331810,1744007484473,-192.59943787,0.00040821,7]
[357331812,1744007484482,-6861.13,0.00040821,7]
[357331814,1744007484492,-500.0,0.00040821,7]
[357331816,1744007484501,-500.0,0.00040821,7]
[357331817,1744007484511,-500.0,0.00040821,7]
[357331820,1744007484520,-7716.74,0.00040821,7]
[357331821,1744007484530,-2269.56,0.00040821,7]
[357331823,1744007484543,-485.97030123,0.00040821,7]
[357331825,1744007484552,-4907.12,0.00040821,7]
[357331827,1744007484562,-504.85,0.00040821,7]
[357331829,1744007484572,-500.0,0.00040821,7]
[357331831,1744007484582,-542.23,0.00040821,7]
[357331833,1744007484592,-2640.34,0.00040821,7]
[357331835,1744007484602,-2111.69,0.00040821,7]
[357331837,1744007484612,-525.28737834,0.00040821,7]
[357331840,1744007484622,-500.0,0.00040821,7]
[357331841,1744007484631,-1000.0,0.00040821,3]
[357331843,1744007484641,-2900.21,0.00040821,7]
[357331845,1744007484652,-534.74645651,0.00040821,7]
[357331847,1744007484666,-754.1,0.00040821,7]
[357331850,1744007484676,-500.0,0.00040821,7]
[357331851,1744007484685,-582.6,0.00040821,7]
[357331853,1744007484696,-726.72,0.00040821,7]
[357331855,1744007484706,-904.26,0.00040821,7]
[357331857,1744007484716,-500.0,0.00040821,7]
[357331859,1744007484726,-853.72,0.00040821,7]
[357331861,1744007484738,-564.13,0.00040821,7]
[357331863,1744007484748,-17236.37,0.00040821,7]
[357331865,1744007484758,-1442.71,0.00040821,7]
[357331867,1744007484768,-520.98,0.00040821,7]
[357331869,1744007484778,-500.0,0.00040821,7]
[357331871,1744007484792,-3459.37,0.00040821,7]
[357331873,1744007484802,-500.0,0.00040821,7]
[357331875,1744007484812,-500.0,0.00040821,7]
[357331877,1744007484822,-500.0,0.00040821,7]
[357331879,1744007484831,-1195.35,0.00040821,7]
[357331881,1744007484840,-500.0,0.00040821,7]
[357331883,1744007484849,-739.23,0.00040821,7]
[357331884,1744007484859,-500.0,0.00040821,7]
[357331886,1744007484869,-931.74,0.00040821,7]
[357331888,1744007484879,-1037.89,0.00040821,7]
[357331890,1744007484889,-500.0,0.00040821,7]
[357331892,1744007484898,-500.0,0.00040821,7]
[357331894,1744007484908,-500.0,0.00040822,7]
[357331896,1744007484918,-500.0,0.00040822,7]
[357331898,1744007484928,-500.0,0.00040822,7]
[357331900,1744007484938,-500.0,0.00040822,7]
[357331902,1744007484948,-211.49636895,0.00040849,30]
[357331904,1744007484959,-800.0,0.0004086,7]
[357331906,1744007484968,-1208.75877963,0.00040866,16]
[357331908,1744007484978,-800.0,0.00040961,7]
[357331910,1744007484989,-175.45227961,0.00040968,10]
[357331912,1744007484999,-800.0,0.00040994,7]
[357331914,1744007485008,-22621.0,0.00041,60]
[357331916,1744007485018,-2000.0,0.00041,120]
[357331918,1744007485028,-2000.0,0.00041,120]
[357331920,1744007485041,-2000.0,0.00041,120]
[357331922,1744007485052,-2000.0,0.00041,120]
[357331923,1744007485062,-1017.0,0.00041,120]
[357331924,1744007485072,-419.36665037,0.00041,30]
[357331925,1744007485082,-419.36665037,0.00041,120]
[357331926,1744007485092,-10010.0,0.00041,7]
[357331927,1744007485102,-800.0,0.00041021,7]
[357331928,1744007485112,-157.741449,0.00041025,2]
[357331929,1744007485122,-211.49636895,0.00041041,30]
[357331930,1744007485132,-150.5,0.0004107,30]
[357331931,1744007485141,-524.0,0.0004107,120]
[357331932,1744007485151,-150.5,0.0004108,30]
[357331933,1744007485162,-524.0,0.0004108,120]
[357331934,1744007485171,-150.5,0.0004109,30]
[357331935,1744007485181,-524.0,0.0004109,120]
[357331936,1744007485191,-500.0,0.00041095,15]
[357331937,1744007485201,-500.0,0.00041095,15]
[357331938,1744007485211,-812.34,0.00041095,7]
[357331939,1744007485221,-500.0,0.00041095,7]
[357331940,1744007485231,-729.06,0.00041095,7]
[357331941,1744007485241,-500.0,0.00041095,7]
[357331942,1744007485250,-500.0,0.00041095,7]
[357331943,1744007485260,-500.0,0.00041095,7]
[357331944,1744007485270,-500.0,0.00041095,7]
[357331945,1744007485280,-736.69,0.00041095,7]
[357331946,1744007485294,-500.0,0.00041095,7]
[357331947,1744007485303,-500.0,0.00041095,7]
[357331948,1744007485312,-500.0,0.00041095,7]
[357331949,1744007485322,-364.99244362,0.00041095,7]
[357331950,1744007485332,-261.94598526,0.00041095,7]
[357331951,1744007485342,-500.0,0.00041095,7]
[357331952,1744007485352,-500.0,0.00041095,7]
[357331953,1744007485361,-500.0,0.00041095,7]
[357331954,1744007485372,-867.45,0.00041095,7]
[357331955,1744007485382,-500.0,0.00041095,7]
[357331956,1744007485392,-500.0,0.00041095,7]
[357331957,1744007485401,-534.35915615,0.00041095,7]
[357331958,1744007485411,-500.0,0.00041095,7]
[357331959,1744007485421,-500.0,0.00041095,7]
[357331960,1744007485430,-500.0,0.00041095,7]
[357331961,1744007485440,-500.0,0.00041095,7]
[357331962,1744007485449,-533.35,0.00041095,7]
[357331963,1744007485459,-906.27,0.00041095,7]
[357331964,1744007485468,-670.8,0.00041095,7]
[357331965,1744007485479,-517.39,0.00041095,7]
[357331966,1744007485488,-500.0,0.00041095,7]
[357331967,1744007485498,-500.0,0.00041095,7]
[357331968,1744007485507,-534.6,0.00041095,7]
[357331969,1744007485517,-500.0,0.00041095,7]
[357331970,1744007485527,-1086.53,0.00041095,7]
[357331971,1744007485538,-576.65,0.00041095,7]
[357331972,1744007485548,-500.0,0.00041095,7]
[357331973,1744007485557,-500.0,0.00041095,7]
[357331974,1744007485567,-500.0,0.00041095,7]
[357331975,1744007485577,-500.0,0.00041095,7]
[357331976,1744007485587,-500.0,0.00041095,7]
[357331977,1744007485596,-500.0,0.00041095,7]
[357331978,1744007485606,-500.0,0.00041095,7]
[357331979,1744007485616,-500.0,0.00041095,7]
[357331980,1744007485625,-1107.37,0.00041095,7]
[357331981,1744007485635,-207.98110298,0.00041095,7]
[357331982,1744007485644,-1447.2,0.00041095,7]
[357331983,1744007485655,-513.43,0.00041095,7]
[357331984,1744007485667,-500.0,0.00041095,7]
[357331985,1744007485678,-566.61,0.00041095,7]
[357331986,1744007485688,-939.19,0.00041095,7]
[357331987,1744007485699,-1423.54,0.00041095,7]
[357331988,1744007485709,-2008.01,0.00041095,7]
[357331989,1744007485719,-1800.94,0.00041095,7]
[357331990,1744007485729,-901.74,0.00041095,7]
[357331991,1744007485740,-500.0,0.00041095,7]
[357331992,1744007485752,-749.66,0.00041095,7]
[357331993,1744007485762,-500.0,0.00041095,7]
[357331994,1744007485772,-500.0,0.00041095,7]
[357331995,1744007485782,-500.0,0.00041095,7]
[357331996,1744007485795,-697.53,0.00041095,7]
[357331997,1744007485805,-500.0,0.00041095,7]
[357331998,1744007485815,-934.77,0.00041095,7]
[357331999,1744007485826,-500.0,0.00041095,7]
[357332000,1744007485836,-1984.09,0.00041095,7]
[357332001,1744007485846,-935.62,0.00041095,7]
[357332002,1744007485857,-946.46,0.00041095,7]
[357332003,1744007485868,-500.0,0.00041095,7]
[357332004,1744007485878,-500.0,0.00041095,7]
[357332005,1744007485888,-515.1,0.00041095,7]
[357332006,1744007485898,-512.76,0.00041095,7]
[357332007,1744007485908,-352.16973353,0.00041095,7]
[357332008,1744007485917,-690.44,0.00041095,7]
[357332009,1744007485928,-838.21,0.00041095,7]
[357332010,1744007485939,-847.87,0.00041095,7]
[357332011,1744007485984,-1589.02,0.00041095,7]
[357332012,1744007486047,-500.0,0.00041095,7]
[357332013,1744007486139,-500.0,0.00041095,7]
[357332014,1744007486227,-500.0,0.00041095,7]
[357332015,1744007486337,-500.0,0.00041095,7]
[357332016,1744007486487,-1158.58,0.00041095,7]
[357332017,1744007486613,-500.0,0.00041095,7]
[357332018,1744007486727,-952.13,0.00041095,7]
[357332019,1744007486856,-573.45,0.00041095,7]
[357332020,1744007486978,-500.0,0.00041095,7]
[357332021,1744007487094,-1057.47,0.00041095,7]
[357332022,1744007487180,-500.0,0.00041095,7]
[357332023,1744007487261,-500.0,0.00041095,7]
[357332024,1744007487313,-694.43,0.00041095,7]
[357332025,1744007487324,-500.0,0.00041095,7]
[357332026,1744007487334,-559.96842845,0.00041095,7]
[357332027,1744007487345,-571.11,0.00041095,7]
[357332028,1744007487355,-500.0,0.00041095,7]
[357332029,1744007487366,-528.03,0.00041095,7]
[357332030,1744007487375,-500.0,0.00041095,7]
[357332031,1744007487385,-613.99,0.00041095,7]
[357332032,1744007487394,-1665.49,0.00041095,7]
[357332033,1744007487404,-928.88,0.00041095,7]
[357332034,1744007487414,-772.18,0.00041095,7]
[357332035,1744007487424,-500.0,0.00041095,7]
[357332036,1744007487434,-500.0,0.00041095,7]
[357332037,1744007487555,-500.0,0.00041095,7]
[357332038,1744007487566,-500.0,0.00041095,7]
[357332039,1744007487577,-1501.09,0.00041095,2]
[357332040,1744007487587,-586.05,0.00041095,7]
[357332041,1744007487598,-722.91,0.00041095,7]
[357332042,1744007487616,-1033.34,0.00041095,7]
[357332043,1744007487626,-250.25869797,0.00041095,7]
[357332044,1744007487636,-1000.0,0.00041095,90]
[357332045,1744007487647,-1000.0,0.00041095,90]
[357332046,1744007487657,-1000.0,0.00041095,90]
[357332047,1744007487669,-1000.0,0.00041095,90]
[357332048,1744007487679,-1000.0,0.00041095,90]
[357332049,1744007487689,-1000.0,0.00041095,90]
[357332050,1744007487702,-522.77,0.00041095,7]
[357332051,1744007487712,-729.4900017,0.00041095,90]
[357332052,1744007487722,-500.0,0.00041095,7]
[357332053,1744007487732,-571.83,0.00041095,7]
[357332054,1744007487742,-523.84,0.00041095,7]
[357332055,1744007487753,-500.0,0.00041095,7]
[357332056,1744007487763,-500.0,0.00041095,7]
[357332057,1744007487773,-500.0,0.00041095,7]
[357332058,1744007487782,-500.0,0.00041095,7]
[357332059,1744007487797,-833.69,0.00041095,7]
[357332060,1744007487808,-500.0,0.00041095,7]
[357332061,1744007487818,-2025.36,0.00041095,7]
[357332062,1744007487827,-294.78078144,0.00041095,7]
[357332063,1744007487837,-500.0,0.00041095,7]
[357332064,1744007487848,-1592.74,0.00041095,7]
[357332065,1744007487858,-603.67,0.00041095,7]
[357332066,1744007487869,-500.0,0.00041095,7]
[357332067,1744007487879,-2054.09,0.00041095,7]
[357332068,1744007487889,-158.62938205,0.00041095,7]
[357332069,1744007487899,-500.0,0.00041095,7]
[357332070,1744007487909,-4027.87,0.00041095,7]
[357332071,1744007487918,-1703.64,0.00041095,7]
[357332072,1744007487929,-500.0,0.00041095,7]
[357332073,1744007487940,-1206.14,0.00041095,7]
[357332074,1744007487950,-2750.5,0.00041095,7]
[357332075,1744007487960,-5383.4,0.00041095,7]
[357332076,1744007487971,-1044.92,0.00041095,7]
[357332077,1744007487981,-752.29,0.00041095,7]
[357332078,1744007487991,-556.96,0.00041095,7]
[357332079,1744007488001,-16324.2,0.00041095,7]
[357332080,1744007488011,-9467.87,0.00041095,7]
[357332081,1744007488021,-500.0,0.00041095,7]
[357332082,1744007488031,-704.24,0.00041095,7]
[357332083,1744007488044,-5668.81,0.00041095,7]
[357332084,1744007488054,-2032.66,0.00041095,7]
[357332085,1744007488065,-7826.43,0.00041095,7]
[357332086,1744007488076,-627.1,0.00041095,7]
[357332087,1744007488087,-1951.0,0.00041095,7]
[357332088,1744007488097,-1564.82,0.00041095,7]
[357332089,1744007488108,-720.69,0.00041095,7]
[357332090,1744007488118,-603.99,0.00041095,7]
[357332091,1744007488129,-500.0,0.00041095,7]
[357332092,1744007488140,-1960.56,0.00041095,7]
[357332093,1744007488149,-1748.88,0.00041095,7]
[357332094,1744007488159,-500.0,0.00041095,7]
[357332095,1744007488169,-2029.77,0.00041095,7]
[357332096,1744007488180,-500.0,0.00041095,7]
[357332097,1744007488190,-1368.39,0.00041095,2]
[357332098,1744007488201,-588.58,0.00041095,7]
[357332099,1744007488212,-601.11,0.00041095,7]
[357332100,1744007488223,-508.73177705,0.00041095,7]
[357332101,1744007488233,-500.0,0.00041095,7]
[357332102,1744007488242,-1802.77,0.00041095,7]
[357332103,1744007488252,-638.37,0.00041095,7]
[357332104,1744007488263,-3642.09,0.00041095,7]
[357332105,1744007488274,-1347.37,0.00041095,7]
[357332106,1744007488284,-1391.95,0.00041095,7]
[357332107,1744007488298,-500.0,0.00041095,7]
[357332108,1744007488308,-2126.62,0.00041095,7]
[357332109,1744007488319,-796.84,0.00041095,7]
[357332110,1744007488330,-617.31,0.00041095,7]
[357332111,1744007488340,-5186.58,0.00041095,7]
[357332112,1744007488351,-1111.1,0.00041095,7]
[357332113,1744007488362,-1058.19,0.00041095,7]
[357332114,1744007488372,-7684.6,0.00041095,7]
[357332115,1744007488382,-781.69,0.00041095,7]
[357332116,1744007488392,-503.58,0.00041095,7]
[357332117,1744007488402,-500.0,0.00041095,7]
[357332118,1744007488412,-526.85,0.00041095,7]
[357332119,1744007488423,-500.0,0.00041095,7]
[357332120,1744007488433,-6861.13,0.00041095,7]
[357332121,1744007488444,-500.0,0.00041095,7]
[357332122,1744007488455,-500.0,0.00041095,7]
[357332123,1744007488465,-500.0,0.00041095,7]
[357332124,1744007488475,-7716.74,0.00041095,7]
[357332125,1744007488487,-2269.56,0.00041095,7]
[357332126,1744007488498,-4907.12,0.00041095,7]
[357332127,1744007488508,-504.85,0.00041095,7]
[357332128,1744007488519,-542.23,0.00041095,7]
[357332129,1744007488530,-2640.34,0.00041095,7]
[357332130,1744007488544,-2111.69,0.00041095,7]
[357332131,1744007488555,-500.0,0.00041095,7]
[357332132,1744007488567,-1000.0,0.00041095,3]
[357332133,1744007488577,-2900.21,0.00041095,7]
[357332134,1744007488587,-754.1,0.00041095,7]
[357332135,1744007488598,-649.2874594,0.00041095,7]
[357332136,1744007488609,-582.6,0.00041095,7]
[357332137,1744007488620,-726.72,0.00041095,7]
[357332138,1744007488631,-904.26,0.00041095,7]
[357332139,1744007488642,-500.0,0.00041095,7]
[357332140,1744007488652,-853.72,0.00041095,7]
[357332141,1744007488667,-564.13,0.00041095,7]
[357332142,1744007488678,-17236.37,0.00041095,7]
[357332143,1744007488689,-1442.71,0.00041095,7]
[357332144,1744007488701,-520.98,0.00041095,7]
[357332145,1744007488711,-500.0,0.00041095,7]
[357332146,1744007488721,-3459.37,0.00041095,7]
[357332147,1744007488732,-483.66443605,0.00041095,7]
[357332148,1744007488742,-341.2084775,0.00041095,7]
[357332149,1744007488753,-500.0,0.00041095,7]
[357332150,1744007488764,-1195.35,0.00041095,7]
[357332151,1744007488774,-500.0,0.00041095,7]
[357332152,1744007488784,-739.23,0.00041095,7]
[357332153,1744007488798,-500.0,0.00041095,7]
[357332154,1744007488808,-931.74,0.00041095,7]
[357332155,1744007488819,-1037.89,0.00041095,7]
[357332156,1744007488829,-500.0,0.00041095,7]
[357332157,1744007488839,-500.0,0.00041095,7]
[357332158,1744007488849,-2502.828822,0.000411,36]
[357332159,1744007488861,-920.01232604,0.00041132,28]
[357332160,1744007488872,-800.0,0.00041144,14]
[357332161,1744007488883,-157.741449,0.0004116,30]
[357332162,1744007488894,-550.0,0.00041164,2]
[357332163,1744007488905,-688.251929,0.00041211,120]
[357332164,1744007488916,-500.0,0.00041233,7]
[357332165,1744007488926,-500.0,0.00041233,7]
[357332166,1744007488936,-500.0,0.00041233,7]
[357332167,1744007488947,-688.30341976,0.00041233,7]
[357332168,1744007488958,-211.49636895,0.00041233,120]
[357332169,1744007488969,-157.741449,0.00041268,60]
[357332170,1744007488979,-800.0,0.00041308,14]
[357332171,1744007488989,-12500.0,0.00041343,10]
[357332172,1744007488999,-12500.0,0.00041351,10]
[357332173,1744007489009,-12500.0,0.0004136,10]
[357332174,1744007489022,-5000.0,0.00041362,2]
[357332175,1744007489032,-12500.0,0.00041369,10]
[357332176,1744007489045,-812.34,0.00041369,7]
[357332177,1744007489056,-500.0,0.00041369,7]
[357332178,1744007489067,-729.06,0.00041369,7]
[357332179,1744007489078,-500.0,0.00041369,7]
[357332180,1744007489088,-264.89293487,0.00041369,7]
[357332181,1744007489098,-500.0,0.00041369,7]
[357332182,1744007489109,-500.0,0.00041369,7]
[357332183,1744007489120,-736.69,0.00041369,7]
[357332184,1744007489130,-500.0,0.00041369,7]
[357332185,1744007489140,-500.0,0.00041369,7]
[357332186,1744007489151,-500.0,0.00041369,7]
[357332187,1744007489162,-500.0,0.00041369,7]
[357332188,1744007489173,-500.0,0.00041369,7]
[357332189,1744007489184,-500.0,0.00041369,7]
[357332190,1744007489195,-867.45,0.00041369,7]
[357332191,1744007489205,-500.0,0.00041369,7]
[357332192,1744007489215,-500.0,0.00041369,7]
[357332193,1744007489227,-500.0,0.00041369,7]
[357332194,1744007489237,-500.0,0.00041369,7]
[357332195,1744007489247,-500.0,0.00041369,7]
[357332196,1744007489258,-533.35,0.00041369,7]
[357332197,1744007489269,-906.27,0.00041369,7]
[357332198,1744007489279,-670.8,0.00041369,7]
[357332199,1744007489291,-517.39,0.00041369,7]
[357332200,1744007489302,-500.0,0.00041369,7]
[357332201,1744007489313,-500.0,0.00041369,7]
[357332202,1744007489324,-534.6,0.00041369,7]
[357332203,1744007489334,-500.0,0.00041369,7]
[357332204,1744007489345,-1086.53,0.00041369,7]
[357332205,1744007489356,-576.65,0.00041369,7]
[357332206,1744007489366,-500.0,0.00041369,7]
[357332207,1744007489378,-500.0,0.00041369,7]
[357332208,1744007489389,-364.73789373,0.00041369,7]
[357332209,1744007489399,-500.0,0.00041369,7]
[357332210,1744007489410,-500.0,0.00041369,7]
[357332211,1744007489420,-500.0,0.00041369,7]
[357332212,1744007489431,-500.0,0.00041369,7]
[357332213,1744007489441,-1107.37,0.00041369,7]
[357332214,1744007489453,-1447.2,0.00041369,7]
[357332215,1744007489464,-513.43,0.00041369,7]
[357332216,1744007489475,-500.0,0.00041369,7]
[357332217,1744007489486,-566.61,0.00041369,7]
[357332218,1744007489496,-939.19,0.00041369,7]
[357332219,1744007489507,-1423.54,0.00041369,7]
[357332220,1744007489518,-2008.01,0.00041369,7]
[357332221,1744007489535,-1800.94,0.00041369,7]
[357332222,1744007489548,-901.74,0.00041369,7]
[357332223,1744007489558,-500.0,0.00041369,7]
[357332224,1744007489569,-749.66,0.00041369,7]
[357332225,1744007489579,-500.0,0.00041369,7]
[357332226,1744007489589,-500.0,0.00041369,7]
[357332227,1744007489599,-500.0,0.00041369,7]
[357332228,1744007489609,-697.53,0.00041369,7]
[357332229,1744007489620,-500.0,0.00041369,7]
[357332230,1744007489630,-934.77,0.00041369,7]
[357332231,1744007489640,-500.0,0.00041369,7]
[357332232,1744007489650,-1984.09,0.00041369,7]
[357332233,1744007489662,-935.62,0.00041369,7]
[357332234,1744007489675,-946.46,0.00041369,7]
[357332235,1744007489685,-500.0,0.00041369,7]
[357332236,1744007489695,-500.0,0.00041369,7]
[357332237,1744007489705,-515.1,0.00041369,7]
[357332238,1744007489716,-512.76,0.00041369,7]
[357332239,1744007489725,-690.44,0.00041369,7]
[357332240,1744007489735,-838.21,0.00041369,7]
[357332241,1744007489745,-847.87,0.00041369,7]
[357332242,1744007489870,-1589.02,0.00041369,7]
[357332243,1744007489881,-500.0,0.00041369,7]
[357332244,1744007489891,-500.0,0.00041369,7]
[357332245,1744007489900,-500.0,0.00041369,7]
[357332246,1744007489911,-500.0,0.00041369,7]
[357332247,1744007489921,-1158.58,0.00041369,7]
[357332248,1744007489931,-952.13,0.00041369,7]
[357332249,1744007489941,-573.45,0.00041369,7]
[357332250,1744007489951,-500.0,0.00041369,7]
[357332251,1744007489961,-1057.47,0.00041369,7]
[357332252,1744007489971,-500.0,0.00041369,7]
[357332253,1744007489981,-500.0,0.00041369,7]
[357332254,1744007489991,-694.43,0.00041369,7]
[357332255,1744007490000,-500.0,0.00041369,7]
[357332256,1744007490010,-571.11,0.00041369,7]
[357332257,1744007490020,-500.0,0.00041369,7]
[357332258,1744007490031,-528.03,0.00041369,7]
[357332259,1744007490044,-500.0,0.00041369,7]
[357332260,1744007490054,-613.99,0.00041369,7]
[357332261,1744007490064,-1665.49,0.00041369,7]
[357332262,1744007490075,-928.88,0.00041369,7]
[357332263,1744007490085,-772.18,0.00041369,7]
[357332264,1744007490095,-500.0,0.00041369,7]
[357332265,1744007490106,-500.0,0.00041369,7]
[357332266,1744007490116,-500.0,0.00041369,7]
[357332267,1744007490126,-500.0,0.00041369,7]
[357332268,1744007490136,-1501.09,0.00041369,2]
[357332269,1744007490146,-586.05,0.00041369,7]
[357332270,1744007490156,-722.91,0.00041369,7]
[357332271,1744007490166,-1033.34,0.00041369,7]
[357332272,1744007490176,-522.77,0.00041369,7]
[357332273,1744007490187,-500.0,0.00041369,7]
[357332274,1744007490196,-571.83,0.00041369,7]
[357332275,1744007490206,-523.84,0.00041369,7]
[357332276,1744007490216,-500.0,0.00041369,7]
[357332277,1744007490226,-500.0,0.00041369,7]
[357332278,1744007490236,-500.0,0.00041369,7]
[357332279,1744007490247,-500.0,0.00041369,7]
[357332280,1744007490257,-833.69,0.00041369,7]
[357332281,1744007490267,-500.0,0.00041369,7]
[357332282,1744007490277,-2025.36,0.00041369,7]
[357332283,1744007490287,-500.0,0.00041369,7]
[357332284,1744007490300,-1592.74,0.00041369,7]
[357332285,1744007490309,-603.67,0.00041369,7]
[357332286,1744007490319,-500.0,0.00041369,7]
[357332287,1744007490330,-2054.09,0.00041369,7]
[357332288,1744007490340,-530.61649493,0.00041369,7]
[357332289,1744007490350,-4027.87,0.00041369,7]
[357332290,1744007490360,-1703.64,0.00041369,7]
[357332291,1744007490370,-1206.14,0.00041369,7]
[357332292,1744007490380,-2750.5,0.00041369,7]
[357332293,1744007490390,-5383.4,0.00041369,7]